bitfinex/quotes_SOLUSD_20250701
["timestamp","ask_amount","ask_price","bid_price","bid_amount"]
[1751334789121,6.46663217,154.64,154.61,30.80425256]
[1751334789922,6.46663217,154.64,154.61,4.80425256]
[1751334791639,6.46663217,154.64,154.6,26.0]
[1751334791811,37.53088473,154.64,154.58,26.0]
[1751334792007,32.72663217,154.64,154.61,4.80425256]
[1751334792213,26.26,154.64,154.62,4.80425256]
[1751334792823,7.35509604,154.65,154.62,4.80425256]
[1751334793008,13.82139004,154.65,154.62,4.80425256]
[1751334794940,13.82131163,154.65,154.62,4.80425256]
[1751334796428,7.35509604,154.65,154.64,4.80425256]
[1751334796630,7.35509604,154.65,154.64,35.60850512]
[1751334796832,6.74,154.73,154.64,35.60850512]
[1751334797133,6.74,154.73,154.7,4.80425256]
[1751334797838,13.20314379,154.73,154.7,4.80425256]
[1751334798022,13.20304177,154.73,154.71,4.80425256]
[1751334798219,13.20304177,154.73,154.69,4.80425256]
[1751334798817,13.20304177,154.73,154.7,4.80425256]
[1751334800839,13.20304177,154.73,154.67,6.46525257]
[1751334801041,13.20304177,154.73,154.7,4.80425256]
[1751334803335,13.20304177,154.73,154.69,4.80425256]
[1751334807744,13.20304177,154.73,154.7,4.80425256]
[1751334807947,6.74,154.73,154.71,4.80425256]
[1751334808126,6.74,154.73,154.72,4.80425256]
[1751334809631,6.74,154.73,154.72,30.80425256]
[1751334810829,6.74,154.73,154.72,49.45390142]
[1751334814333,13.2028708,154.73,154.72,49.45390142]
[1751334817225,6.46120049,154.77,154.72,54.25815398]
[1751334817430,6.46120049,154.77,154.76,4.80425256]
[1751334817739,6.46120049,154.77,154.75,26.0]
[1751334817943,6.46120049,154.77,154.76,4.80425256]
[1751334818449,22.61420171,154.77,154.73,26.0]
[1751334818636,22.61420171,154.77,154.74,4.80425256]
[1751334818948,22.61420171,154.77,154.73,30.80425256]
[1751334821155,27.41845427,154.77,154.73,4.80425256]
[1751334821340,6.46835256,154.76,154.71,4.80425256]
[1751334821649,4.80425256,154.75,154.72,26.0]
[1751334821855,4.80425256,154.75,154.7,4.80425256]
[1751334822743,6.46245314,154.74,154.7,4.80425256]
[1751334824159,6.46245314,154.74,154.71,4.80425256]
[1751334824744,6.78,154.74,154.71,4.80425256]
[1751334826860,6.4628708,154.73,154.71,4.80425256]
[1751334828960,6.4628708,154.73,154.69,26.0]
[1751334829369,6.4628708,154.73,154.7,23.45390142]
[1751334829854,6.4628708,154.73,154.71,4.80425256]
[1751334830262,6.4628708,154.73,154.7,18.64964886]
[1751334830562,6.4628708,154.73,154.71,4.80425256]
[1751334830757,6.4628708,154.73,154.7,18.64964886]
[1751334830967,6.4628708,154.73,154.71,4.80425256]
[1751334831143,6.4628708,154.73,154.7,23.45390142]
[1751334831559,6.4628708,154.73,154.7,4.80425256]
[1751334833066,22.62004781,154.73,154.69,4.80425256]
[1751334837463,6.4628708,154.73,154.7,4.80425256]
[1751334839160,6.4628708,154.73,154.69,18.64964886]
[1751334839463,6.4628708,154.73,154.66,4.80425256]
[1751334839464,4.80425256,154.7,154.66,4.80425256]
[1751334839663,6.35315256,154.71,154.66,4.80425256]
[1751334839961,26.3,154.7,154.66,4.80425256]
[1751334840575,6.46454198,154.69,154.66,4.80425256]
[1751334840762,6.46454198,154.69,154.67,26.0]
[1751334840963,6.46454198,154.69,154.67,30.80425256]
[1751334841260,26.3,154.7,154.68,4.80425256]
[1751334841468,26.3,154.7,154.69,4.80425256]
[1751334841768,6.46339427,154.72,154.69,4.80425256]
[1751334841961,6.46291173,154.73,154.7,4.80425256]
[1751334844978,6.46291173,154.73,154.67,51.11499503]
[1751334845167,11.26716429,154.73,154.68,4.80425256]
[1751334845999,6.46291173,154.73,154.7,18.64964886]
[1751334846578,6.46291173,154.73,154.69,30.80425256]
[1751334846782,11.26716429,154.73,154.69,26.0]
[1751334847787,6.46291173,154.73,154.69,30.80425256]
[1751334849596,6.76,154.72,154.69,30.80425256]
[1751334849889,11.56425256,154.72,154.68,26.0]
[1751334850072,6.46412411,154.7,154.67,18.64964886]
[1751334850270,6.46412411,154.7,154.67,44.64964886]
[1751334850471,6.46412411,154.7,154.67,49.45390142]
[1751334851379,6.46412411,154.7,154.67,26.0]
[1751334852289,6.6893757,154.69,154.64,4.80425256]
[1751334852485,4.80425256,154.67,154.62,4.80425256]
[1751334852681,5.0885757,154.65,154.57,7.7928]
[1751334852887,6.76,154.64,154.6,30.80425256]
[1751334853191,6.76,154.64,154.62,26.0]
[1751334853893,6.46705037,154.63,154.62,26.0]
[1751334855099,6.76,154.64,154.62,30.80425256]
[1751334855306,6.76,154.64,154.63,4.80425256]
[1751334856690,6.76,154.64,154.62,26.0]
[1751334856876,6.76,154.64,154.63,18.64964886]
[1751334857383,6.76,154.64,154.63,44.64964886]
[1751334857572,6.76,154.64,154.63,49.45390142]
[1751334861320,6.76,154.64,154.61,18.64964886]
[1751334861784,13.22692337,154.64,154.61,18.64964886]
[1751334862177,18.03117593,154.64,154.6,4.80425256]
[1751334862378,26.36,154.63,154.6,4.80425256]
[1751334863402,6.46746863,154.62,154.6,4.80425256]
[1751334863798,32.82718433,154.63,154.61,4.80425256]
[1751334864499,32.82721701,154.63,154.61,4.80425256]
[1751334866290,32.82721701,154.63,154.59,18.64964886]
[1751334866492,32.82721701,154.63,154.61,4.80425256]
[1751334866707,32.82721701,154.63,154.59,18.64964886]
[1751334866708,26.36,154.63,154.62,23.45390142]
[1751334867006,6.76,154.64,154.63,18.64964886]
[1751334867202,6.76,154.64,154.63,23.45390142]
[1751334868310,13.22663217,154.64,154.63,18.64964886]
[1751334868492,13.22663217,154.64,154.62,18.64964886]
[1751334871199,13.22663217,154.64,154.62,23.45390142]
[1751334874311,6.76,154.64,154.63,49.45390142]
[1751334875928,13.22663217,154.64,154.63,18.64964886]
[1751334877217,13.22663217,154.64,154.61,18.64964886]
[1751334877414,26.36,154.63,154.61,18.64964886]
[1751334878316,32.82741738,154.63,154.61,18.64964886]
[1751334880921,32.82741738,154.63,154.61,23.45390142]
[1751334882523,27.81812314,154.62,154.56,0.2966784]
[1751334882717,4.80425256,154.59,154.56,0.2966784]
[1751334882925,26.44,154.58,154.56,0.2966784]
[1751334883108,6.8,154.57,154.56,0.2966784]
[1751334883418,1.5338,154.62,154.58,44.64964886]
[1751334883724,38.3285757,154.61,154.58,44.64964886]
[1751334883914,38.3285757,154.61,154.57,18.64964886]
[1751334884514,6.4683053,154.6,154.57,18.64964886]
[1751334884711,26.46,154.59,154.57,18.64964886]
[1751334885724,26.46,154.59,154.57,23.45390142]
[1751334885901,26.46,154.59,154.58,23.45390142]
[1751334886098,13.26796695,154.61,154.58,23.45390142]
[1751334886422,39.72796695,154.61,154.58,18.64964886]
[1751334886603,39.72796695,154.61,154.58,23.45390142]
[1751334887999,13.26796695,154.61,154.58,23.45390142]
[1751334888199,39.72796695,154.61,154.58,23.45390142]
[1751334888500,13.26796695,154.61,154.58,23.45390142]
[1751334888717,39.70796695,154.61,154.58,23.45390142]
[1751334889524,39.70796695,154.61,154.58,18.64964886]
[1751334892730,33.24,154.61,154.58,23.45390142]
[1751334893325,39.70791634,154.61,154.58,23.45390142]
[1751334893614,39.70791634,154.61,154.58,18.64964886]
[1751334893814,39.70791634,154.61,154.58,23.45390142]
[1751334894745,39.70791634,154.61,154.58,18.64964886]
[1751334894909,39.70791634,154.61,154.58,23.45390142]
[1751334895831,39.70791634,154.61,154.58,18.64964886]
[1751334896128,39.70791634,154.61,154.58,23.45390142]
[1751334896428,39.70791634,154.61,154.58,18.64964886]
[1751334898637,44.5121689,154.61,154.56,26.2966784]
[1751334898930,44.5121689,154.61,154.57,18.64964886]
[1751334899734,39.70791634,154.61,154.57,18.64964886]
[1751334899934,44.5121689,154.61,154.57,18.64964886]
[1751334900820,44.5121689,154.61,154.57,23.45390142]
[1751334901943,39.70791634,154.61,154.59,18.64964886]
[1751334903948,33.24,154.61,154.59,18.64964886]
[1751334904510,39.70799494,154.61,154.59,18.64964886]
[1751334906243,39.70799494,154.61,154.57,23.45390142]
[1751334906456,44.5122475,154.61,154.57,18.64964886]
[1751334907353,39.70799494,154.61,154.57,23.45390142]
[1751334912753,39.70799494,154.61,154.58,23.45390142]
[1751334914252,39.70799494,154.61,154.57,23.45390142]
[1751334916157,44.5122475,154.61,154.57,23.45390142]
[1751334916344,4.80425256,154.59,154.57,18.64964886]
[1751334916540,26.36,154.58,154.56,18.94632726]
[1751334917033,5.0885757,154.57,154.56,0.2966784]
[1751334918243,11.55813641,154.57,154.56,0.2966784]
[1751334918658,6.75388385,154.57,154.56,0.2966784]
[1751334918964,6.46956071,154.57,154.56,0.2966784]
[1751334919146,6.46929286,154.58,154.57,18.64964886]
[1751334919457,32.86929286,154.58,154.57,18.64964886]
[1751334919657,32.86884844,154.59,154.57,4.80425256]
[1751334921548,6.46884844,154.59,154.57,4.80425256]
[1751334921850,32.86884844,154.59,154.57,4.80425256]
[1751334922025,26.4,154.59,154.57,4.80425256]
[1751334922357,6.4683053,154.6,154.57,4.80425256]
[1751334922526,26.4,154.59,154.58,23.45390142]
[1751334923023,26.4,154.59,154.58,18.64964886]
[1751334923429,26.68432314,154.59,154.56,0.2966784]
[1751334923628,31.4885757,154.59,154.56,0.2966784]
[1751334923857,26.4,154.59,154.56,5.10093096]
[1751334924354,6.46914219,154.58,154.56,5.10093096]
[1751334925250,6.46914219,154.58,154.56,0.2966784]
[1751334925449,26.42,154.57,154.56,44.94632726]
[1751334926657,32.88956071,154.57,154.56,18.94632726]
[1751334929258,6.46956071,154.57,154.56,18.94632726]
[1751334929556,26.42,154.58,154.56,18.94632726]
[1751334930161,22.64053302,154.59,154.56,18.94632726]
[1751334930353,26.42,154.58,154.56,18.94632726]
[1751334931264,26.42,154.58,154.57,18.64964886]
[1751334931456,32.88914219,154.58,154.57,18.64964886]
[1751334931851,32.88914219,154.58,154.57,4.80425256]
[1751334932052,26.42,154.58,154.57,4.80425256]
[1751334932282,6.46888156,154.59,154.57,4.80425256]
[1751334932464,6.46888156,154.59,154.58,23.45390142]
[1751334933260,6.46888156,154.59,154.58,18.64964886]
[1751334933458,6.4683053,154.6,154.58,18.64964886]
[1751334933636,32.8683053,154.6,154.58,18.64964886]
[1751334934764,6.4683053,154.6,154.58,18.64964886]
[1751334934965,32.8683053,154.6,154.58,18.64964886]
[1751334935263,32.8683053,154.6,154.58,23.45390142]
[1751334935466,6.8,154.61,154.59,4.80425256]
[1751334935768,33.2,154.61,154.6,4.80425256]
[1751334936160,6.8,154.61,154.6,49.45390142]
[1751334936364,6.8,154.61,154.6,44.79181043]
[1751334936562,6.8,154.61,154.6,49.59606299]
[1751334939270,6.8,154.61,154.6,56.06436829]
[1751334942570,6.4653779,154.67,154.61,18.79181043]
[1751334942772,6.82,154.67,154.66,23.45390142]
[1751334943585,6.82,154.67,154.66,23.59606299]
[1751334944863,6.82,154.67,154.66,30.06185892]
[1751334946078,6.82,154.67,154.66,23.59606299]
[1751334949472,6.82,154.67,154.66,30.06185892]
[1751334950380,6.82,154.67,154.66,23.59606299]
[1751334951663,6.82,154.67,154.66,30.06185892]
[1751334951864,6.82,154.73,154.71,0.14216157]
[1751334952063,6.82,154.73,154.72,23.45390142]
[1751334955988,13.2828708,154.73,154.72,18.64964886]
[1751334957967,39.6628708,154.73,154.72,18.64964886]
[1751334960785,60.90862351,154.73,154.68,4.80425256]
[1751334960989,6.41035256,154.72,154.68,18.64964886]
[1751334961167,6.46370628,154.71,154.7,18.64964886]
[1751334963188,6.46370628,154.71,154.68,4.80425256]
[1751334964281,6.46370628,154.71,154.7,4.80425256]
[1751334966192,6.46328852,154.72,154.7,4.80425256]
[1751334968393,13.28304982,154.73,154.72,18.64964886]
[1751334968689,13.28304982,154.73,154.72,23.45390142]
[1751334970092,6.82,154.73,154.72,23.45390142]
[1751334971295,6.82,154.73,154.72,23.59606299]
[1751334971499,7.02,154.73,154.72,23.59606299]
[1751334984617,13.4828708,154.73,154.72,18.64964886]
[1751334984986,13.4828708,154.73,154.71,18.64964886]
[1751334992214,13.4828708,154.73,154.71,4.80425256]
[1751334993499,13.4828708,154.73,154.71,18.64964886]
[1751334996318,7.02,154.73,154.71,4.80425256]
[1751334996498,7.02,154.73,154.7,0.14216157]
[1751334996690,7.02,154.73,154.71,4.80425256]
[1751334999609,7.02,154.73,154.72,18.79181043]
[1751335000711,7.02,154.73,154.72,0.14216157]
[1751335001009,7.02,154.73,154.72,18.79181043]
[1751335005828,7.02,154.73,154.72,23.45390142]
[1751335006014,7.02,154.73,154.72,18.79181043]
[1751335006520,7.02,154.73,154.72,18.64964886]
[1751335006720,13.4828708,154.73,154.72,18.64964886]
[1751335006927,7.02,154.73,154.72,18.64964886]
[1751335007834,13.4828708,154.73,154.72,18.64964886]
[1751335010617,7.02,154.73,154.72,18.64964886]
[1751335012622,13.4828708,154.73,154.72,18.64964886]
[1751335012815,7.02,154.73,154.72,18.64964886]
[1751335024438,13.4828708,154.73,154.72,18.64964886]
[1751335024644,42.84609867,154.73,154.72,18.64964886]
[1751335026340,33.3,154.73,154.72,18.64964886]
[1751335026529,7.02,154.73,154.72,18.64964886]
[1751335027945,13.4828708,154.73,154.72,18.64964886]
[1751335030823,7.02,154.73,154.72,18.64964886]
[1751335032057,16.56609867,154.73,154.72,18.64964886]
[1751335033125,13.4828708,154.73,154.72,18.64964886]
[1751335034143,7.02,154.73,154.72,18.79181043]
[1751335036051,7.02,154.73,154.72,28.33832682]
[1751335036232,7.02,154.73,154.72,21.8750383]
[1751335036432,7.02,154.73,154.72,18.79181043]
[1751335039049,13.4828708,154.73,154.72,18.64964886]
[1751335039250,16.56609867,154.73,154.72,18.64964886]
[1751335041833,18.3022337,154.73,154.72,18.64964886]
[1751335043745,13.4828708,154.73,154.72,18.64964886]
[1751335044252,18.3022337,154.73,154.72,18.64964886]
[1751335044554,13.4828708,154.73,154.72,18.64964886]
[1751335044748,18.3022337,154.73,154.72,18.64964886]
[1751335061766,16.56680163,154.73,154.72,18.64964886]
[1751335067782,13.4828708,154.73,154.72,18.64964886]
[1751335067989,16.56680163,154.73,154.72,18.64964886]
[1751335071974,13.4828708,154.73,154.72,18.64964886]
[1751335072272,16.56680163,154.73,154.72,18.64964886]
[1751335079885,13.4828708,154.73,154.72,18.64964886]
[1751335080060,16.56680163,154.73,154.72,18.64964886]
[1751335080260,13.4828708,154.73,154.72,18.64964886]
[1751335080480,16.56680163,154.73,154.72,18.64964886]
[1751335084885,58.72397864,154.73,154.65,0.24216157]
[1751335085095,3.08393083,154.69,154.65,18.74964886]
[1751335085279,26.26,154.72,154.67,21.87574126]
[1751335085457,0.2,154.73,154.69,18.79181043]
[1751335085661,0.2,154.73,154.69,21.87574126]
[1751335086195,0.2,154.73,154.71,21.87574126]
[1751335086579,0.2,154.73,154.72,21.87574126]
[1751335088372,0.2,154.73,154.72,28.33902978]
[1751335090881,0.2,154.73,154.72,21.87574126]
[1751335092902,0.2,154.73,154.72,18.79181043]
[1751335093689,0.2,154.73,154.72,25.25509895]
[1751335093890,0.2,154.73,154.72,28.33902978]
[1751335094717,0.2,154.73,154.72,28.62335292]
[1751335097680,0.2,154.73,154.72,28.33902978]
[1751335098007,0.2,154.73,154.72,18.79181043]
[1751335101225,9.74680163,154.73,154.72,18.64964886]
[1751335101388,16.50680163,154.73,154.72,18.64964886]
[1751335102510,42.50680163,154.73,154.72,18.64964886]
[1751335102882,16.50680163,154.73,154.72,18.64964886]
[1751335103831,18.24311203,154.73,154.72,18.64964886]
[1751335103987,18.24311203,154.73,154.66,0.14216157]
[1751335103988,26.0,154.7,154.65,6.5660797]
[1751335104189,4.82024123,154.69,154.66,18.64964886]
[1751335105495,4.82024123,154.69,154.65,18.89181043]
[1751335105891,11.28489503,154.69,154.65,18.89181043]
[1751335106209,4.82024123,154.68,154.65,0.24216157]
[1751335107422,11.2854016,154.68,154.65,0.24216157]
[1751335107724,4.82024123,154.66,154.65,0.1]
[1751335107891,11.58024123,154.66,154.65,0.1]
[1751335108617,18.04603716,154.66,154.65,0.1]
[1751335108919,6.76,154.66,154.65,0.1]
[1751335109117,11.58024123,154.66,154.65,0.1]
[1751335109319,6.76,154.66,154.65,0.1]
[1751335110615,11.58024123,154.66,154.65,0.1]
[1751335111822,18.04603716,154.66,154.65,0.1]
[1751335118625,6.76,154.66,154.65,0.24216157]
[1751335120928,6.76,154.66,154.65,0.1]
[1751335129036,11.58024123,154.66,154.65,0.1]
[1751335130049,18.04603716,154.66,154.65,0.1]
[1751335130630,11.58024123,154.66,154.65,0.1]
[1751335131439,6.76,154.66,154.65,0.1]
[1751335133626,6.96,154.66,154.65,0.1]
[1751335139250,10.04608628,154.66,154.65,0.1]
[1751335142040,6.96,154.66,154.65,0.1]
[1751335148961,10.04608628,154.66,154.65,0.1]
[1751335149558,16.51188221,154.66,154.65,0.1]
[1751335151643,68.77188221,154.66,154.65,0.1]
[1751335151834,42.77188221,154.66,154.65,0.1]
[1751335157660,42.51188221,154.66,154.65,0.1]
[1751335159065,68.77188221,154.66,154.65,0.1]
[1751335159749,42.77188221,154.66,154.65,0.1]
[1751335196400,42.91404378,154.66,154.65,0.1]
[1751335198700,42.77188221,154.66,154.65,0.1]
[1751335200477,42.91404378,154.66,154.65,0.1]
[1751335202302,55.2583889,154.66,154.65,0.1]
[1751335205086,42.91404378,154.66,154.65,0.1]
[1751335206810,61.56369264,154.66,154.65,0.1]
[1751335207011,73.90803776,154.66,154.65,0.1]
[1751335207210,74.1923609,154.66,154.58,0.1]
[1751335207386,3.08608628,154.59,154.58,0.1]
[1751335207591,36.08608628,154.59,154.58,0.1]
[1751335208011,54.87789671,154.59,154.58,0.1]
[1751335208187,26.0,154.57,154.56,0.2966784]
[1751335208393,55.34608628,154.57,154.56,0.2966784]
[1751335208799,74.15999211,154.57,154.56,0.2966784]
[1751335209109,61.81564699,154.57,154.56,0.2966784]
[1751335209501,74.15999211,154.57,154.56,0.2966784]
[1751335210024,93.23612568,154.57,154.56,0.2966784]
[1751335211720,77.52137114,154.57,154.56,0.2966784]
[1751335211917,92.95180254,154.57,154.56,0.2966784]
[1751335215001,26.0,154.53,154.49,6.477]
[1751335215212,3.08608628,154.5,154.49,6.477]
[1751335215427,29.34608628,154.5,154.49,6.477]
[1751335216912,29.34608628,154.5,154.49,0.1]
[1751335221127,35.96073975,154.5,154.49,0.1]
[1751335222129,26.26,154.5,154.49,0.1]
[1751335222334,55.34608628,154.5,154.49,0.1]
[1751335223104,52.26,154.5,154.49,0.1]
[1751335223309,61.81857818,154.5,154.49,0.1]
[1751335223936,55.34608628,154.5,154.49,0.1]
[1751335224233,61.81857818,154.5,154.49,0.1]
[1751335225049,52.26,154.5,154.49,0.1]
[1751335225236,61.81857818,154.5,154.49,0.1]
[1751335235337,35.96073975,154.5,154.49,0.1]
[1751335238439,54.61038861,154.5,154.49,0.1]
[1751335240525,54.89471175,154.5,154.49,0.1]
[1751335240732,68.80975687,154.5,154.49,0.1]
[1751335240928,68.80975687,154.5,154.42,0.1]
[1751335240929,26.0,154.46,154.42,0.1]
[1751335241129,18.64964886,154.42,154.28,6.2376]
[1751335241440,3.08608628,154.38,154.34,3.08608628]
[1751335241642,3.08608628,154.39,154.34,3.08608628]
[1751335241822,3.08608628,154.39,154.33,6.2376]
[1751335242138,9.56329414,154.39,154.34,3.08608628]
[1751335242330,9.84608628,154.38,154.33,9.32368628]
[1751335242550,3.08608628,154.36,154.33,6.2376]
[1751335243722,4.84136622,154.36,154.33,6.2376]
[1751335244428,11.31990903,154.36,154.33,6.2376]
[1751335246633,6.76,154.38,154.34,5.12568936]
[1751335246836,6.76,154.38,154.35,1.556]
[1751335247036,6.76,154.38,154.36,4.84136622]
[1751335247444,4.84136622,154.43,154.37,5.12568936]
[1751335247636,11.60136622,154.44,154.4,4.84136622]
[1751335247836,6.76,154.44,154.41,4.84136622]
[1751335248050,6.76,154.44,154.43,4.84136622]
[1751335248234,6.76,154.44,154.42,6.42496622]
[1751335249056,6.76,154.44,154.42,12.90067246]
[1751335249655,6.96,154.44,154.43,4.84136622]
[1751335250353,6.96,154.44,154.42,1.5836]
[1751335250539,6.96,154.44,154.42,6.42496622]
[1751335252665,6.96,154.44,154.42,1.5836]
[1751335252846,6.96,154.44,154.4,11.41802494]
[1751335255567,6.96,154.44,154.4,4.94136622]
[1751335258965,6.96,154.44,154.41,4.84136622]
[1751335259765,32.96,154.44,154.4,6.57667983]
[1751335259962,32.96,154.44,154.41,4.84136622]
[1751335260271,32.96,154.44,154.4,0.1]
[1751335260455,32.96,154.44,154.41,4.84136622]
[1751335261363,32.96,154.44,154.4,4.94136622]
[1751335261665,44.27640114,154.44,154.4,4.94136622]
[1751335262272,39.43503492,154.44,154.4,4.94136622]
[1751335264287,18.27640114,154.44,154.4,0.1]
[1751335264453,18.27640114,154.44,154.4,4.94136622]
[1751335264780,6.96,154.44,154.4,4.94136622]
[1751335265370,6.96,154.44,154.4,11.41794638]
[1751335267074,13.43502501,154.44,154.4,4.94136622]
[1751335269181,13.43502501,154.44,154.4,0.1]
[1751335269387,13.43502501,154.44,154.4,4.94136622]
[1751335272280,23.63317665,154.41,154.4,0.1]
[1751335274164,18.79181043,154.41,154.4,0.1]
[1751335274563,6.47554725,154.43,154.4,0.1]
[1751335274879,4.84136622,154.42,154.4,0.1]
[1751335275067,4.84136622,154.41,154.4,0.1]
[1751335275267,0.14216157,154.42,154.4,0.1]
[1751335276083,23.49101508,154.43,154.4,0.1]
[1751335276377,59.24,154.44,154.4,4.94136622]
[1751335276587,59.24,154.44,154.4,11.4178001]
[1751335279362,32.96,154.44,154.4,11.4178001]
[1751335280689,6.96,154.44,154.41,4.84136622]
[1751335280885,6.96,154.44,154.42,4.84136622]
[1751335281558,6.96,154.44,154.41,4.84136622]
[1751335282594,6.96,154.44,154.41,11.31731531]
[1751335283987,6.96,154.44,154.42,4.84136622]
[1751335284766,6.96,154.44,154.42,11.3169166]
[1751335288668,6.96,154.44,154.43,4.84136622]
[1751335288859,6.96,154.44,154.43,5.12568936]
[1751335289464,0.2,154.44,154.43,5.12568936]
[1751335290796,0.2,154.44,154.43,11.60111511]
[1751335295995,0.2,154.44,154.43,5.12568936]
[1751335296491,0.2,154.44,154.43,6.75974889]
[1751335296707,0.2,154.44,154.43,11.60111511]
[1751335298098,0.2,154.44,154.43,5.12568936]
[1751335302902,0.2,154.44,154.43,11.60111511]
[1751335306404,0.2,154.44,154.43,5.12568936]
[1751335307311,0.2,154.44,154.41,0.1]
[1751335307483,18.64964886,154.43,154.41,4.94136622]
[1751335309109,0.34216157,154.44,154.42,4.84136622]
[1751335311410,0.2,154.44,154.42,4.84136622]
[1751335312204,0.2,154.44,154.42,11.31708162]
[1751335315299,0.2,154.44,154.42,6.4757154]
[1751335315614,0.2,154.44,154.42,11.31708162]
[1751335316023,0.2,154.44,154.41,6.57614374]
[1751335316322,0.2,154.44,154.41,11.41750996]
[1751335317118,0.2,154.44,154.41,4.94136622]
[1751335317499,0.2,154.44,154.41,0.1]
[1751335317831,0.2,154.44,154.41,4.94136622]
[1751335319718,18.84964886,154.44,154.41,11.41761551]
[1751335320217,0.14216157,154.43,154.41,6.57624929]
[1751335321533,0.14216157,154.43,154.42,4.84136622]
[1751335322305,0.34216157,154.44,154.42,11.31721131]
[1751335322510,0.34216157,154.44,154.43,4.84136622]
[1751335323122,0.2,154.44,154.43,4.84136622]
[1751335323702,0.34216157,154.44,154.43,4.84136622]
[1751335324501,0.34216157,154.44,154.43,11.31679197]
[1751335327005,0.34216157,154.44,154.43,11.60111511]
[1751335330622,0.2,154.44,154.43,11.60111511]
[1751335331609,0.2,154.44,154.43,11.31679197]
[1751335331810,0.2,154.44,154.43,9.56908915]
[1751335337536,0.2,154.44,154.43,3.0936634]
[1751335338336,0.2,154.44,154.41,0.1]
[1751335338520,18.99181043,154.44,154.41,3.1936634]
[1751335340039,18.99181043,154.44,154.41,9.66987273]
[1751335341815,18.99181043,154.44,154.41,11.41148]
[1751335342326,18.99181043,154.44,154.41,6.57620933]
[1751335342526,23.8270811,154.44,154.41,0.1]
[1751335342728,30.30209604,154.44,154.41,0.1]
[1751335343034,23.8270811,154.44,154.41,0.1]
[1751335343217,30.5670811,154.44,154.41,0.1]
[1751335345430,25.73181043,154.44,154.41,0.1]
[1751335346945,32.20687228,154.44,154.41,0.1]
[1751335350556,37.04214295,154.44,154.41,0.1]
[1751335351736,49.6270811,154.42,154.41,0.1]
[1751335351937,75.8870811,154.42,154.41,0.1]
[1751335352445,20.42451043,154.41,154.35,4.93527067]
[1751335352652,18.79181043,154.39,154.35,4.93527067]
[1751335353034,0.14216157,154.39,154.36,4.83527067]
[1751335354047,18.79181043,154.39,154.36,4.83527067]
[1751335354648,6.47702296,154.4,154.36,6.47826518]
[1751335354649,18.64964886,154.4,154.36,6.47826518]
[1751335354858,0.14216157,154.39,154.38,4.83527067]
[1751335355035,18.64964886,154.41,154.38,4.83527067]
[1751335355349,0.14216157,154.4,154.38,4.83527067]
[1751335355947,0.14216157,154.4,154.37,4.83527067]
[1751335356450,0.14216157,154.4,154.36,6.47826518]
[1751335356648,0.14216157,154.4,154.37,4.83527067]
[1751335357665,0.14216157,154.4,154.38,4.83527067]
[1751335359053,0.14216157,154.4,154.36,6.47836227]
[1751335359231,0.14216157,154.4,154.38,4.83527067]
[1751335361862,0.14216157,154.4,154.38,11.31275935]
[1751335362564,0.14216157,154.4,154.39,4.83527067]
[1751335362744,0.14216157,154.42,154.39,4.83527067]
[1751335363645,0.14216157,154.42,154.39,11.31230716]
[1751335363845,0.14216157,154.42,154.39,9.57234063]
[1751335365364,0.14216157,154.42,154.39,3.09530414]
[1751335366558,6.61809953,154.42,154.35,0.38432314]
[1751335366762,0.14216157,154.38,154.35,9.67403763]
[1751335366940,0.14216157,154.38,154.36,3.09530414]
[1751335367959,0.14216157,154.38,154.36,9.57359247]
[1751335370365,0.14216157,154.36,154.35,0.1]
[1751335370870,0.14216157,154.36,154.35,3.19530414]
[1751335374346,0.14216157,154.36,154.35,0.1]
[1751335375668,0.14216157,154.36,154.35,3.19530414]
[1751335377363,0.14216157,154.36,154.35,0.1]
[1751335379176,25.2701727,154.36,154.35,0.1]
[1751335381281,18.79181043,154.36,154.35,0.1]
[1751335381760,18.79181043,154.36,154.34,3.19530414]
[1751335381761,54.36589655,154.35,154.34,0.1]
[1751335381951,28.36589655,154.35,154.34,0.1]
[1751335382156,30.00579655,154.35,154.34,0.1]
[1751335382553,56.34579655,154.35,154.34,0.1]
[1751335384188,0.14216157,154.3,154.28,6.5816818]
[1751335384491,44.79181043,154.29,154.28,0.1]
[1751335387999,18.64964886,154.29,154.28,5.22872179]
[1751335388304,18.64964886,154.36,154.29,0.28432314]